{"text_format":"3","workbook":"xlsx","n_sheets":1,"sheets":["ตัววางแผนงบประมาณวันหยุดพักผ่อน"],"not_rendered":{"defined_names":1},"read":"whole","date_system":"1900"}

{"sheet":"ตัววางแผนงบประมาณวันหยุดพักผ่อน","index":0,"n_rows":37,"n_cols":12,"rows_kept":37,"merged":[[1,1,7,4],[9,1,9,4],[9,8,9,11],[19,1,19,4],[19,8,19,11],[30,1,30,4],[30,8,30,11]]}
[]
[null,"ตัววางแผนงบประมาณวันหยุดพักผ่อน"]
[]
[{"$nulls":8},"งบประมาณในวันหยุด",null,{"$f":"SUM(ของขวัญ[งบประมาณ],บรรจุภัณฑ์[งบประมาณ],(การเดินทาง[งบประมาณ],(มื้ออาหาร[งบประมาณ],(ความบันเทิง[งบประมาณ],เบ็ดเตล็ด[งบประมาณ]))))","v":{"v":750,"d":"฿750.00"}}]
[{"$nulls":8},"ค่าใช้จ่ายตามจริง",null,{"$f":"SUM((ของขวัญ[ตามที่เป็นจริง],(บรรจุภัณฑ์[ค่าใช้จ่ายจริง],(การเดินทาง[ค่าใช้จ่ายจริง],(มื้ออาหาร[ตามที่เป็นจริง],(ความบันเทิง[ค่าใช้จ่ายจริง],(เบ็ดเตล็ด[ค่าใช้จ่ายจริง])))))))","v":{"v":820,"d":"฿820.00"}}]
[]
[{"$nulls":8},"ผลต่าง (สูงกว่า/ต่ำกว่างบประมาณ)",null,{"$f":"SUM(K4-K5)","v":{"v":-70,"d":"-฿70.00"}}]
[]
[]
[null,"ของชำร่วย",{"$nulls":6},"มื้ออาหารในวันหยุด"]
[null,"รายการ","งบประมาณ","ตามที่เป็นจริง","ผลต่าง",{"$nulls":3},"รายการ","งบประมาณ","ตามที่เป็นจริง","ผลต่าง"]
[null,"ครอบครัว",{"v":500,"d":"฿500.00"},{"v":495,"d":"฿495.00"},{"$f":"ของขวัญ[[#This Row],[งบประมาณ]]-ของขวัญ[[#This Row],[ตามที่เป็นจริง]]","v":{"v":5,"d":"฿5.00"}},{"$nulls":3},"ของชำ",null,null,{"$f":"มื้ออาหาร[[#This Row],[งบประมาณ]]-มื้ออาหาร[[#This Row],[ตามที่เป็นจริง]]","v":{"v":0,"d":"฿0.00"}}]
[null,"เพื่อน",{"v":250,"d":"฿250.00"},{"v":325,"d":"฿325.00"},{"$f":"ของขวัญ[[#This Row],[งบประมาณ]]-ของขวัญ[[#This Row],[ตามที่เป็นจริง]]","v":{"v":-75,"d":"-฿75.00"}},{"$nulls":3},"การกรวดน้ำ",null,null,{"$f":"มื้ออาหาร[[#This Row],[งบประมาณ]]-มื้ออาหาร[[#This Row],[ตามที่เป็นจริง]]","v":{"v":0,"d":"฿0.00"}}]
[null,"เพื่อนร่วมงาน",null,null,{"$f":"ของขวัญ[[#This Row],[งบประมาณ]]-ของขวัญ[[#This Row],[ตามที่เป็นจริง]]","v":{"v":0,"d":"฿0.00"}},{"$nulls":3},"การตกแต่ง",null,null,{"$f":"มื้ออาหาร[[#This Row],[งบประมาณ]]-มื้ออาหาร[[#This Row],[ตามที่เป็นจริง]]","v":{"v":0,"d":"฿0.00"}}]
[null,"ครู คนเลี้ยงเด็ก พี่เลี้ยงเด็ก เป็นต้น",null,null,{"$f":"ของขวัญ[[#This Row],[งบประมาณ]]-ของขวัญ[[#This Row],[ตามที่เป็นจริง]]","v":{"v":0,"d":"฿0.00"}},{"$nulls":3},"อื่นๆ (แตะคอลัมน์สุดท้ายของแถวนี้เพื่อเพิ่มแถว)",null,null,{"$f":"มื้ออาหาร[[#This Row],[งบประมาณ]]-มื้ออาหาร[[#This Row],[ตามที่เป็นจริง]]","v":{"v":0,"d":"฿0.00"}}]
[null,"การบริจาคเพื่อการกุศล",null,null,{"$f":"ของขวัญ[[#This Row],[งบประมาณ]]-ของขวัญ[[#This Row],[ตามที่เป็นจริง]]","v":{"v":0,"d":"฿0.00"}},{"$nulls":3},"ผลรวม",{"$f":"SUBTOTAL(109,มื้ออาหาร[งบประมาณ])","v":{"v":0,"d":"฿0.00"}},{"$f":"SUBTOTAL(109,มื้ออาหาร[ตามที่เป็นจริง])","v":{"v":0,"d":"฿0.00"}},{"$f":"SUBTOTAL(109,มื้ออาหาร[ผลต่าง])","v":{"v":0,"d":"฿0.00"}}]
[null,"อื่นๆ (แตะคอลัมน์สุดท้ายของแถวนี้เพื่อเพิ่มแถว)",null,null,{"$f":"ของขวัญ[[#This Row],[งบประมาณ]]-ของขวัญ[[#This Row],[ตามที่เป็นจริง]]","v":{"v":0,"d":"฿0.00"}}]
[null,"ผลรวม",{"$f":"SUBTOTAL(109,ของขวัญ[งบประมาณ])","v":{"v":750,"d":"฿750.00"}},{"$f":"SUBTOTAL(109,ของขวัญ[ตามที่เป็นจริง])","v":{"v":820,"d":"฿820.00"}},{"$f":"SUBTOTAL(109,ของขวัญ[ผลต่าง])","v":{"v":-70,"d":"-฿70.00"}}]
[]
[null,"การบรรจุ",{"$nulls":6},"ความบันเทิง"]
[null,"รายการ","งบประมาณ","ค่าใช้จ่ายจริง","ผลต่าง",{"$nulls":3},"รายการ","งบประมาณ","ค่าใช้จ่ายจริง","ผลต่าง"]
[null,"ห่อของขวัญ",null,null,{"$f":"บรรจุภัณฑ์[[#This Row],[งบประมาณ]]-บรรจุภัณฑ์[[#This Row],[ค่าใช้จ่ายจริง]]","v":{"v":0,"d":"฿0.00"}},{"$nulls":3},"บริการช่วยเหลือในงานเลี้ยง (บาร์เทนเดอร์ ผู้ให้บริการจัดเลี้ยง พนักงานทำความสะอาด เป็นต้น)",null,null,{"$f":"ความบันเทิง[[#This Row],[งบประมาณ]]-ความบันเทิง[[#This Row],[ค่าใช้จ่ายจริง]]","v":{"v":0,"d":"฿0.00"}}]
[null,"แท็ก",null,null,{"$f":"บรรจุภัณฑ์[[#This Row],[งบประมาณ]]-บรรจุภัณฑ์[[#This Row],[ค่าใช้จ่ายจริง]]","v":{"v":0,"d":"฿0.00"}},{"$nulls":3},"การตกแต่ง",null,null,{"$f":"ความบันเทิง[[#This Row],[งบประมาณ]]-ความบันเทิง[[#This Row],[ค่าใช้จ่ายจริง]]","v":{"v":0,"d":"฿0.00"}}]
[null,"อุปกรณ์ต่างๆ (ริบบิ้น เทป เป็นต้น)",null,null,{"$f":"บรรจุภัณฑ์[[#This Row],[งบประมาณ]]-บรรจุภัณฑ์[[#This Row],[ค่าใช้จ่ายจริง]]","v":{"v":0,"d":"฿0.00"}},{"$nulls":3},"อาหารและเครื่องดื่ม",null,null,{"$f":"ความบันเทิง[[#This Row],[งบประมาณ]]-ความบันเทิง[[#This Row],[ค่าใช้จ่ายจริง]]","v":{"v":0,"d":"฿0.00"}}]
[null,"กล่อง",null,null,{"$f":"บรรจุภัณฑ์[[#This Row],[งบประมาณ]]-บรรจุภัณฑ์[[#This Row],[ค่าใช้จ่ายจริง]]","v":{"v":0,"d":"฿0.00"}},{"$nulls":3},"ค่าเสื้อผ้า",null,null,{"$f":"ความบันเทิง[[#This Row],[งบประมาณ]]-ความบันเทิง[[#This Row],[ค่าใช้จ่ายจริง]]","v":{"v":0,"d":"฿0.00"}}]
[null,"ค่าไปรษณีย์",null,null,{"$f":"บรรจุภัณฑ์[[#This Row],[งบประมาณ]]-บรรจุภัณฑ์[[#This Row],[ค่าใช้จ่ายจริง]]","v":{"v":0,"d":"฿0.00"}},{"$nulls":3},"ตั๋ว",null,null,{"$f":"ความบันเทิง[[#This Row],[งบประมาณ]]-ความบันเทิง[[#This Row],[ค่าใช้จ่ายจริง]]","v":{"v":0,"d":"฿0.00"}}]
[null,"อื่นๆ (แตะคอลัมน์สุดท้ายของแถวนี้เพื่อเพิ่มแถว)",null,null,{"$f":"บรรจุภัณฑ์[[#This Row],[งบประมาณ]]-บรรจุภัณฑ์[[#This Row],[ค่าใช้จ่ายจริง]]","v":{"v":0,"d":"฿0.00"}},{"$nulls":3},"ทานอาหารค่ำนอกบ้าน",null,null,{"$f":"ความบันเทิง[[#This Row],[งบประมาณ]]-ความบันเทิง[[#This Row],[ค่าใช้จ่ายจริง]]","v":{"v":0,"d":"฿0.00"}}]
[null,"ผลรวม",{"$f":"SUBTOTAL(109,บรรจุภัณฑ์[งบประมาณ])","v":{"v":0,"d":"฿0.00"}},{"$f":"SUBTOTAL(109,บรรจุภัณฑ์[ค่าใช้จ่ายจริง])","v":{"v":0,"d":"฿0.00"}},{"$f":"SUBTOTAL(109,บรรจุภัณฑ์[ผลต่าง])","v":{"v":0,"d":"฿0.00"}},{"$nulls":3},"อื่นๆ (แตะคอลัมน์สุดท้ายของแถวนี้เพื่อเพิ่มแถว)",null,null,{"$f":"ความบันเทิง[[#This Row],[งบประมาณ]]-ความบันเทิง[[#This Row],[ค่าใช้จ่ายจริง]]","v":{"v":0,"d":"฿0.00"}}]
[{"$nulls":8},"ผลรวม",{"$f":"SUBTOTAL(109,ความบันเทิง[งบประมาณ])","v":{"v":0,"d":"฿0.00"}},{"$f":"SUBTOTAL(109,ความบันเทิง[ค่าใช้จ่ายจริง])","v":{"v":0,"d":"฿0.00"}},{"$f":"SUBTOTAL(109,ความบันเทิง[ผลต่าง])","v":{"v":0,"d":"฿0.00"}}]
[]
[null,"การเดินทาง",{"$nulls":6},"เบ็ดเตล็ด"]
[null,"รายการ","งบประมาณ","ค่าใช้จ่ายจริง","ผลต่าง",{"$nulls":3},"รายการ","งบประมาณ","ค่าใช้จ่ายจริง","ผลต่าง"]
[null,"ตั๋วเครื่องบิน",null,null,{"$f":"การเดินทาง[[#This Row],[งบประมาณ]]-การเดินทาง[[#This Row],[ค่าใช้จ่ายจริง]]","v":{"v":0,"d":"฿0.00"}},{"$nulls":3},"ภาพถ่ายวันหยุด",null,null,{"$f":"เบ็ดเตล็ด[[#This Row],[งบประมาณ]]-เบ็ดเตล็ด[[#This Row],[ค่าใช้จ่ายจริง]]","v":{"v":0,"d":"฿0.00"}}]
[null,"ที่พัก",null,null,{"$f":"การเดินทาง[[#This Row],[งบประมาณ]]-การเดินทาง[[#This Row],[ค่าใช้จ่ายจริง]]","v":{"v":0,"d":"฿0.00"}},{"$nulls":3},"แก๊ส ",null,null,{"$f":"เบ็ดเตล็ด[[#This Row],[งบประมาณ]]-เบ็ดเตล็ด[[#This Row],[ค่าใช้จ่ายจริง]]","v":{"v":0,"d":"฿0.00"}}]
[null,"การเดินทาง",null,null,{"$f":"การเดินทาง[[#This Row],[งบประมาณ]]-การเดินทาง[[#This Row],[ค่าใช้จ่ายจริง]]","v":{"v":0,"d":"฿0.00"}},{"$nulls":3},"อื่นๆ (แตะคอลัมน์สุดท้ายของแถวนี้เพื่อเพิ่มแถว)",null,null,{"$f":"เบ็ดเตล็ด[[#This Row],[งบประมาณ]]-เบ็ดเตล็ด[[#This Row],[ค่าใช้จ่ายจริง]]","v":{"v":0,"d":"฿0.00"}}]
[null,"อื่นๆ (แตะคอลัมน์สุดท้ายของแถวนี้เพื่อเพิ่มแถว)",null,null,{"$f":"การเดินทาง[[#This Row],[งบประมาณ]]-การเดินทาง[[#This Row],[ค่าใช้จ่ายจริง]]","v":{"v":0,"d":"฿0.00"}},{"$nulls":3},"ผลรวม",{"$f":"SUBTOTAL(109,เบ็ดเตล็ด[งบประมาณ])","v":{"v":0,"d":"฿0.00"}},{"$f":"SUBTOTAL(109,เบ็ดเตล็ด[ค่าใช้จ่ายจริง])","v":{"v":0,"d":"฿0.00"}},{"$f":"SUBTOTAL(109,เบ็ดเตล็ด[ผลต่าง])","v":{"v":0,"d":"฿0.00"}}]
[null,"ผลรวม",{"$f":"SUBTOTAL(109,การเดินทาง[งบประมาณ])","v":{"v":0,"d":"฿0.00"}},{"$f":"SUBTOTAL(109,การเดินทาง[ค่าใช้จ่ายจริง])","v":{"v":0,"d":"฿0.00"}},{"$f":"SUBTOTAL(109,การเดินทาง[ผลต่าง])","v":{"v":0,"d":"฿0.00"}}]